bitfinex-derivatives/quotes_BTCF0:USTF0_20230106
["timestamp","ask_amount","ask_price","bid_price","bid_amount"]
[1673028581066,0.299,16863.0,16862.0,1.2065]
[1673028584963,0.299,16863.0,16862.0,1.2051]
[1673028590633,0.099,16863.0,16862.0,1.2051]
[1673028594419,0.099,16863.0,16862.0,1.20500088]
[1673028600612,0.099,16863.0,16862.0,1.35350088]
[1673028606717,0.7811,16869.0,16863.0,0.2]
[1673028606932,0.4486,16870.0,16868.0,0.1478]
[1673028607132,0.4486,16870.0,16867.0,0.2]
[1673028607133,0.2,16869.0,16867.0,0.2]
[1673028608081,0.2,16869.0,16867.0,0.212]
[1673028610178,0.1485,16868.0,16867.0,0.212]
[1673028610391,0.2,16869.0,16867.0,0.36]
[1673028610602,0.2,16869.0,16868.0,1.19700088]
[1673028611232,0.3485,16869.0,16868.0,1.04990088]
[1673028611551,0.3485,16869.0,16868.0,1.06190088]
[1673028612172,0.3485,16869.0,16868.0,1.36260088]
[1673028614179,0.3485,16871.0,16868.0,1.51090088]
[1673028614373,0.3485,16871.0,16869.0,0.3485]
[1673028616068,0.3485,16871.0,16869.0,0.3605]
[1673028617431,0.3485,16871.0,16870.0,0.2]
[1673028617755,1.38340583,16872.0,16870.0,0.6478]
[1673028617954,1.08270583,16872.0,16870.0,1.69770088]
[1673028618157,0.1481,16872.0,16870.0,1.69770088]
[1673028618380,0.00020997,16874.0,16872.0,0.5941]
[1673028618794,0.20020997,16874.0,16871.0,0.1477]
[1673028619001,0.20020997,16874.0,16870.0,1.26190088]
[1673028619219,0.3007,16873.0,16870.0,1.24990088]
[1673028619424,0.3007,16873.0,16872.0,0.012]
[1673028619634,0.3007,16873.0,16870.0,1.24990088]
[1673028619635,0.4487,16873.0,16871.0,1.19770088]
[1673028619847,0.4487,16873.0,16871.0,1.20970088]
[1673028620054,0.4487,16873.0,16872.0,0.2]
[1673028620470,0.4487,16873.0,16871.0,1.20970088]
[1673028620679,0.4487,16873.0,16872.0,0.2]
[1673028620887,0.4487,16873.0,16872.0,0.211]
[1673028621101,0.4492,16873.0,16872.0,0.211]
[1673028621320,0.4492,16873.0,16872.0,0.2]
[1673028622164,0.4492,16873.0,16872.0,0.011]
[1673028622359,0.5976,16873.0,16872.0,0.011]
[1673028622778,0.7976,16873.0,16872.0,0.011]
[1673028622999,0.9461,16873.0,16872.0,0.011]
[1673028623523,0.7976,16873.0,16872.0,0.011]
[1673028624991,0.9456,16873.0,16872.0,0.011]
[1673028626149,0.9456,16873.0,16872.0,0.0001]
[1673028627519,0.2,16872.0,16869.0,1.04990088]
[1673028627826,0.4492,16870.0,16869.0,1.04990088]
[1673028628452,0.4492,16870.0,16869.0,1.06090088]
[1673028629928,0.4492,16870.0,16869.0,1.04990088]
[1673028630246,0.4592,16870.0,16869.0,1.05990088]
[1673028630672,1.0567,16870.0,16869.0,1.05990088]
[1673028630978,1.0567,16870.0,16869.0,1.06090088]
[1673028631198,1.0567,16870.0,16869.0,0.011]
[1673028631508,1.0567,16870.0,16869.0,0.01]
[1673028631708,1.0562,16870.0,16869.0,0.01]
[1673028632550,1.0462,16870.0,16867.0,1.04990088]
[1673028632870,0.4692,16870.0,16869.0,0.011]
[1673028633080,1.0644,16870.0,16869.0,0.012]
[1673028633718,1.0644,16870.0,16867.0,1.04990088]
[1673028633719,1.0444,16870.0,16867.0,1.04990088]
[1673028633926,0.5977,16868.0,16867.0,1.06090088]
[1673028634133,0.5977,16868.0,16867.0,1.04990088]
[1673028635403,0.5977,16868.0,16867.0,1.06090088]
[1673028635717,0.6177,16868.0,16867.0,1.06090088]
[1673028637083,0.6177,16868.0,16867.0,0.011]
[1673028637809,0.6177,16868.0,16867.0,1.06090088]
[1673028638436,0.5977,16868.0,16867.0,1.04990088]
[1673028638661,0.6177,16868.0,16867.0,0.012]
[1673028639289,0.7659,16868.0,16867.0,0.012]
[1673028639601,1.6561,16868.0,16867.0,0.01080001]
[1673028639818,0.2,16867.0,16865.0,1.04990088]
[1673028640016,0.5966,16866.0,16865.0,1.04990088]
[1673028640239,0.7966,16866.0,16865.0,1.04990088]
[1673028640444,0.7966,16866.0,16861.0,0.3142]
[1673028640656,0.7966,16866.0,16864.0,1.04990088]
[1673028640657,0.297,16865.0,16864.0,1.04990088]
[1673028640869,0.9437,16865.0,16864.0,1.04990088]
[1673028641803,0.9757,16865.0,16864.0,1.06090088]
[1673028644852,0.8282,16865.0,16864.0,1.06090088]
[1673028648540,0.6511,16865.0,16864.0,1.06090088]
[1673028650012,0.9518,16865.0,16864.0,1.06090088]
[1673028651051,1.0704,16865.0,16864.0,1.06090088]
[1673028652308,1.1892,16865.0,16864.0,0.011]
[1673028653577,1.1892,16865.0,16864.0,0.00990001]
[1673028655572,1.1892,16865.0,16864.0,0.00891001]
[1673028657880,1.1892,16865.0,16864.0,0.00801901]
[1673028658302,1.0704,16865.0,16864.0,0.00801901]
[1673028661566,1.0704,16865.0,16864.0,1.05791989]
[1673028664413,1.0704,16865.0,16864.0,0.00801901]
[1673028665041,1.0704,16865.0,16864.0,1.05791989]
[1673028666716,0.469,16865.0,16864.0,1.05791989]
[1673028667029,1.0704,16865.0,16864.0,1.05791989]
[1673028667879,1.0704,16865.0,16864.0,0.00801901]
[1673028667880,1.7237,16865.0,16864.0,0.00801901]
[1673028668184,0.1,16864.0,16862.0,1.04990088]
[1673028668391,0.8555,16863.0,16862.0,1.04990088]
[1673028670398,0.7371,16863.0,16862.0,1.04990088]
[1673028670924,0.7571,16863.0,16862.0,1.04990088]
[1673028671133,0.7371,16863.0,16862.0,1.04990088]
[1673028671353,0.7791,16863.0,16862.0,1.06090088]
[1673028671762,0.7791,16863.0,16862.0,1.06190088]
[1673028675452,0.7791,16863.0,16862.0,0.012]
[1673028675760,0.7791,16863.0,16862.0,1.06070089]
[1673028677235,0.7791,16863.0,16862.0,1.06190088]
[1673028677236,0.7801,16863.0,16862.0,1.06190088]
[1673028677649,0.7801,16863.0,16862.0,0.9557108]
[1673028678284,1.71470583,16863.0,16862.0,0.9557108]
[1673028679756,1.71470583,16863.0,16862.0,0.86013973]
[1673028682706,0.7801,16863.0,16862.0,0.86013973]
[1673028685954,0.4617,16863.0,16862.0,0.86013973]
[1673028686915,0.462,16863.0,16862.0,0.86013973]
[1673028689751,1.39660583,16863.0,16862.0,0.86013973]
[1673028691423,1.39660583,16863.0,16862.0,0.77412576]
[1673028691852,0.462,16863.0,16862.0,0.77412576]
[1673028692052,0.662,16863.0,16862.0,0.77412576]
[1673028694794,1.59579517,16863.0,16862.0,0.77412576]
[1673028696884,0.662,16863.0,16862.0,0.77412576]
[1673028703408,0.662,16863.0,16862.0,0.69671319]
[1673028705402,0.662,16863.0,16862.0,0.62704188]
[1673028706353,1.59609107,16863.0,16862.0,0.62704188]
[1673028709606,1.29539107,16863.0,16862.0,0.62704188]
[1673028709820,1.89679107,16863.0,16862.0,0.62704188]
[1673028710653,0.9627,16863.0,16862.0,0.62704188]
[1673028714444,0.3613,16863.0,16862.0,0.62704188]
[1673028714640,0.9627,16863.0,16862.0,0.62704188]
[1673028718740,1.2896,16863.0,16862.0,0.62704188]
[1673028720001,2.22374998,16863.0,16862.0,0.62704188]
[1673028721271,2.07554998,16863.0,16862.0,0.62704188]
[1673028724735,2.07554998,16863.0,16860.0,0.2]
[1673028724942,1.92704998,16863.0,16862.0,0.62704188]
[1673028725156,2.07554998,16863.0,16862.0,0.62704188]
[1673028725572,2.07554998,16863.0,16860.0,0.2]
[1673028725775,1.92704998,16863.0,16862.0,0.62704188]
[1673028725992,2.07314998,16863.0,16862.0,0.62704188]
[1673028727041,1.139,16863.0,16862.0,0.62704188]
[1673028738933,1.139,16863.0,16862.0,0.5643377]
[1673028740186,1.2875,16863.0,16862.0,0.5643377]
[1673028743243,2.1785,16863.0,16862.0,0.5643377]
[1673028746186,3.0695,16863.0,16860.0,0.5643377]
[1673028746389,1.6368,16861.0,16860.0,0.5643377]
[1673028747130,1.6368,16861.0,16860.0,0.5753377]
[1673028747865,1.6908,16861.0,16860.0,0.5753377]
[1673028750075,0.799,16861.0,16860.0,0.5753377]
[1673028753428,0.6509,16861.0,16860.0,0.5753377]
[1673028753645,0.5021,16861.0,16860.0,0.5753377]
[1673028754495,0.2014,16861.0,16860.0,0.5753377]
[1673028755446,0.054,16861.0,16860.0,0.7227377]
[1673028755968,0.054,16861.0,16860.0,0.9227377]
[1673028757650,0.2025,16861.0,16860.0,0.5753377]
[1673028757963,0.7987,16861.0,16860.0,0.5753377]
[1673028759226,0.9987,16861.0,16860.0,0.5753377]
[1673028765013,0.8517,16861.0,16860.0,0.5753377]
[1673028765227,1.0002,16861.0,16860.0,0.5753377]
[1673028767961,0.5547,16861.0,16860.0,0.5753377]
[1673028768174,0.9997,16861.0,16860.0,0.5753377]
[1673028769312,0.7024,16861.0,16860.0,0.5753377]
[1673028770370,0.5024,16861.0,16860.0,0.5753377]
[1673028770595,0.054,16861.0,16860.0,0.7238377]
[1673028771001,0.054,16861.0,16860.0,0.9238377]
[1673028771204,0.3477,16864.0,16860.0,1.0723377]
[1673028771424,0.3477,16864.0,16863.0,0.5643377]
[1673028772164,0.004,16864.0,16863.0,0.7119377]
[1673028772582,0.4492,16866.0,16863.0,0.7119377]
[1673028772788,0.2,16865.0,16864.0,0.1485]
[1673028772995,0.2,16865.0,16864.0,0.7128377]
[1673028773940,0.5007,16866.0,16864.0,0.7128377]
[1673028774156,0.5007,16866.0,16865.0,0.3474]
[1673028775417,0.5007,16866.0,16865.0,0.011]
[1673028775418,0.6492,16866.0,16865.0,0.011]
[1673028775626,0.6532,16866.0,16865.0,0.011]
[1673028775944,0.6532,16866.0,16865.0,0.211]
[1673028776897,0.6532,16866.0,16865.0,0.011]
[1673028777106,0.6532,16866.0,16865.0,0.211]
[1673028780263,0.6532,16866.0,16865.0,0.011]
[1673028781094,0.9502,16866.0,16865.0,0.011]
[1673028783729,1.8425,16866.0,16865.0,0.011]
[1673028784153,2.04028806,16866.0,16865.0,0.011]
[1673028784565,2.04028806,16866.0,16861.0,0.5643377]
[1673028784778,0.5964,16862.0,16861.0,0.5643377]
[1673028785203,0.7964,16862.0,16861.0,0.5643377]
[1673028786353,0.7964,16862.0,16861.0,0.5743377]
[1673028787089,0.8014,16862.0,16861.0,0.5643377]
[1673028788987,0.5057,16862.0,16861.0,0.5643377]
[1673028789191,0.7421,16862.0,16861.0,0.5643377]
[1673028790555,0.8609,16862.0,16861.0,0.5643377]
[1673028797388,0.6609,16862.0,16861.0,0.5643377]
[1673028797601,0.3602,16862.0,16861.0,0.5643377]
[1673028798040,0.1238,16862.0,16861.0,0.5643377]
[1673028798866,0.1238,16862.0,16861.0,0.7643377]
[1673028808221,0.3238,16862.0,16861.0,0.7643377]
[1673028808635,0.4415,16862.0,16861.0,0.7643377]
[1673028816466,0.005,16862.0,16861.0,0.7643377]
[1673028816664,0.005,16862.0,16861.0,0.8831377]
[1673028817305,0.005,16862.0,16861.0,0.7643377]
[1673028818140,0.005,16862.0,16861.0,1.0650377]
[1673028818457,0.1527,16862.0,16861.0,1.0650377]
[1673028821197,0.1522,16862.0,16861.0,1.0650377]
[1673028830656,0.1522,16862.0,16861.0,0.7643377]
[1673028830870,0.3535,16862.0,16861.0,0.5643377]
[1673028831177,0.502,16862.0,16861.0,0.5643377]
[1673028832694,0.502,16862.0,16860.0,0.5643377]
[1673028832861,0.5492,16861.0,16860.0,0.5643377]
[1673028834017,0.5492,16861.0,16860.0,0.6283377]
[1673028836339,0.8456,16861.0,16860.0,0.064]
[1673028837486,0.8456,16861.0,16860.0,0.06389274]
[1673028838329,1.04338806,16861.0,16860.0,0.03049274]
[1673028838529,0.2,16860.0,16857.0,0.5643377]
[1673028838844,1.6335,16858.0,16857.0,0.5643377]
[1673028840094,1.9342,16858.0,16857.0,0.5643377]
[1673028840504,1.0457,16858.0,16857.0,0.6753377]
[1673028840721,1.0457,16858.0,16857.0,0.5643377]
[1673028840722,0.4492,16858.0,16857.0,0.5643377]
[1673028840935,0.4552,16858.0,16857.0,0.6753377]
[1673028842191,0.1545,16858.0,16857.0,0.6753377]
[1673028844410,0.1545,16858.0,16857.0,0.9760377]
[1673028844820,0.006,16858.0,16857.0,1.1245377]
[1673028851137,0.1545,16858.0,16857.0,0.9760377]
[1673028851455,0.1533,16858.0,16857.0,0.9760377]
[1673028855347,0.6025,16858.0,16857.0,0.6753377]
[1673028857863,0.4552,16858.0,16857.0,0.6753377]
[1673028873742,0.6037,16858.0,16857.0,0.6753377]
[1673028874274,0.6037,16858.0,16857.0,0.111]
[1673028874686,0.7522,16858.0,16857.0,0.111]
[1673028877315,0.9522,16858.0,16857.0,0.111]
[1673028878384,0.9516,16858.0,16857.0,0.111]
[1673028879627,0.9756,16858.0,16857.0,0.003]
[1673028880893,1.8666,16858.0,16857.0,0.003]
[1673028881112,0.9753,16858.0,16857.0,0.003]
[1673028887418,0.9753,16858.0,16857.0,0.0027943]
[1673028894163,1.8675,16858.0,16857.0,0.0027943]
[1673028894355,0.2,16857.0,16855.0,0.5643377]
[1673028894565,1.6359,16856.0,16855.0,0.5643377]
[1673028895515,0.7451,16856.0,16855.0,0.5643377]
[1673028896460,0.7451,16856.0,16855.0,0.6633377]
[1673028896671,0.9451,16856.0,16855.0,0.6633377]
[1673028896877,0.9521,16856.0,16855.0,0.6633377]
[1673028903732,0.3547,16856.0,16855.0,0.6633377]
[1673028903933,0.1547,16856.0,16855.0,0.6633377]
[1673028904345,0.1547,16856.0,16855.0,0.8633377]
[1673028908986,0.007,16856.0,16855.0,1.0108377]
[1673028911083,0.007,16856.0,16855.0,1.0112377]
[1673028911300,0.007,16856.0,16855.0,1.0118377]
[1673028911825,0.3485,16859.0,16855.0,1.0118377]
[1673028912042,0.3485,16859.0,16858.0,0.5643377]
[1673028912346,0.1485,16859.0,16858.0,0.9124377]
[1673028912558,0.0008,16860.0,16858.0,0.9128377]
[1673028912761,0.0008,16860.0,16859.0,0.4487]
[1673028912970,0.0008,16860.0,16859.0,0.6487]
[1673028913715,0.0798,16860.0,16859.0,0.6487]
[1673028913918,0.0798,16860.0,16859.0,0.7966]
[1673028914874,0.0798,16860.0,16859.0,0.8056]
[1673028921279,0.0798,16860.0,16859.0,0.6571]
[1673028921485,0.0798,16860.0,16859.0,1.2214377]
[1673028929256,0.0798,16860.0,16859.0,0.9207377]
[1673028931156,0.0798,16860.0,16859.0,0.9218377]
[1673028934097,0.2283,16860.0,16859.0,0.7733377]
[1673028936198,0.2283,16860.0,16859.0,1.0740377]
[1673028937665,0.1853,16860.0,16859.0,1.0670377]
[1673028938503,0.0368,16860.0,16859.0,1.2144377]
[1673028949751,0.0368,16860.0,16859.0,0.9137377]
[1673028951225,0.0368,16860.0,16859.0,0.7663377]
[1673028953112,0.0368,16860.0,16859.0,1.0670377]
[1673028956796,0.0368,16860.0,16859.0,0.7663377]
[1673028956997,0.0368,16860.0,16859.0,1.0670377]
[1673028957422,0.0368,16860.0,16859.0,1.06697474]
[1673028957939,0.0368,16860.0,16859.0,0.20193704]
[1673028958154,0.3853,16860.0,16859.0,0.20193704]
[1673028961515,0.3853,16860.0,16859.0,0.76627474]
[1673028975502,0.1853,16860.0,16859.0,0.76627474]
[1673028976027,0.3853,16860.0,16859.0,0.76627474]
[1673028977073,0.3853,16860.0,16859.0,0.5663377]
[1673028979180,0.686,16860.0,16859.0,0.5663377]
[1673028982125,0.3853,16860.0,16859.0,0.5663377]
[1673028985480,0.686,16860.0,16859.0,0.5663377]
[1673028991686,0.686,16860.0,16859.0,0.002]
[1673028996517,0.686,16860.0,16859.0,0.202]
[1673028996730,0.686,16860.0,16859.0,0.002]
[1673028997355,0.686,16860.0,16859.0,0.202]
[1673029000832,0.3853,16860.0,16859.0,0.202]
[1673029001034,0.3843,16860.0,16859.0,0.3491]
[1673029001247,0.0368,16860.0,16859.0,0.3499]
[1673029001462,0.00743827,16860.0,16859.0,0.3499]
[1673029002296,0.00743827,16860.0,16859.0,0.3505]
[1673029008398,0.00743827,16860.0,16859.0,0.3975]
[1673029008399,0.002,16860.0,16859.0,0.3975]
[1673029011130,0.002,16860.0,16859.0,0.546]
[1673029014800,0.002,16860.0,16859.0,0.8467]
[1673029021225,0.002,16860.0,16859.0,0.6982]
[1673029021736,0.002,16860.0,16859.0,0.4982]
[1673029021953,0.1498,16860.0,16859.0,0.049]
[1673029022160,0.3498,16860.0,16859.0,0.049]
[1673029023008,0.3498,16860.0,16859.0,0.249]
[1673029023427,0.3498,16860.0,16859.0,0.049]
[1673029025536,0.3498,16860.0,16859.0,0.249]
[1673029025739,0.3498,16860.0,16859.0,0.049]
[1673029025956,0.3498,16860.0,16859.0,0.249]
[1673029029102,0.3498,16860.0,16859.0,0.049]
[1673029029306,0.3498,16860.0,16859.0,0.249]
[1673029031210,0.3498,16860.0,16859.0,0.049]
[1673029039204,0.4983,16860.0,16859.0,0.049]
[1673029039833,0.799,16860.0,16859.0,0.049]
[1673029046244,0.799,16860.0,16859.0,0.04881764]
[1673029047079,0.799,16860.0,16859.0,0.24881764]
[1673029048352,0.799,16860.0,16859.0,0.04881764]
[1673029050975,0.9475,16860.0,16859.0,0.04881764]
[1673029052444,0.1,16859.0,16855.0,0.5643377]
[1673029052647,0.4455,16856.0,16855.0,0.5643377]
[1673029053071,0.4455,16856.0,16853.0,0.40291194]
[1673029053072,1.3353,16856.0,16853.0,0.40291194]
[1673029053287,0.3007,16855.0,16853.0,0.40291194]
[1673029053503,0.4945,16854.0,16853.0,0.8650377]
[1673029054237,0.3473,16854.0,16853.0,0.9580377]
[1673029054641,0.3473,16854.0,16853.0,0.8650377]
[1673029054856,0.3553,16854.0,16853.0,0.9580377]
[1673029056742,0.1553,16854.0,16853.0,0.9580377]
[1673029056956,0.1559,16854.0,16853.0,0.9580377]
[1673029058647,0.008,16854.0,16853.0,1.1061377]
[1673029060012,0.008,16854.0,16853.0,1.4068377]
[1673029061161,0.008,16854.0,16853.0,1.4061377]
[1673029071145,0.008,16854.0,16853.0,1.4063377]
[1673029072610,0.008,16854.0,16853.0,1.3056377]
[1673029074823,0.008,16854.0,16853.0,1.0049377]
[1673029075033,0.008,16854.0,16853.0,1.3056377]
[1673029077137,0.1552,16854.0,16853.0,0.9580377]
[1673029077343,0.1552,16854.0,16853.0,0.6573377]
[1673029078388,0.2552,16854.0,16853.0,0.6573377]
[1673029079758,0.2552,16854.0,16853.0,0.093]
[1673029080392,0.2552,16854.0,16853.0,0.6573377]
[1673029088487,0.008,16854.0,16853.0,0.9580377]
[1673029091223,0.008,16854.0,16853.0,1.1054377]
[1673029091425,0.008,16854.0,16853.0,1.1065377]
[1673029096892,0.008,16854.0,16853.0,1.8485377]
[1673029097103,0.2,16857.0,16854.0,0.2]
[1673029097308,0.2,16857.0,16856.0,0.7114377]
[1673029098154,0.2,16857.0,16856.0,0.9114377]
[1673029098354,0.202,16857.0,16856.0,0.9404377]
[1673029101301,0.35,16857.0,16856.0,0.7933377]
[1673029111195,0.3498,16857.0,16856.0,0.7933377]
[1673029114446,0.3495,16857.0,16856.0,0.7933377]
[1673029139987,0.1495,16857.0,16856.0,0.7933377]
[1673029141243,0.002,16857.0,16856.0,0.9414377]
[1673029142186,0.002,16857.0,16856.0,1.2421377]
[1673029147665,0.002,16857.0,16856.0,1.24205904]
[1673029149767,0.002,16857.0,16856.0,0.6778]
[1673029150188,0.1505,16857.0,16856.0,0.79325904]
[1673029151131,0.1497,16857.0,16856.0,0.79325904]
[1673029155019,0.1497,16857.0,16856.0,0.59325904]
[1673029161218,0.1505,16857.0,16856.0,0.59325904]
[1673029183821,0.4512,16857.0,16856.0,0.59325904]
[1673029186140,0.1505,16857.0,16856.0,0.59325904]
[1673029186351,0.4512,16857.0,16856.0,0.59325904]
[1673029191178,0.4506,16857.0,16856.0,0.59325904]
[1673029193910,0.45049009,16857.0,16856.0,0.59325904]
[1673029201277,0.45109009,16857.0,16856.0,0.59325904]
[1673029208637,0.15039009,16857.0,16856.0,0.59325904]
[1673029209685,0.15039009,16857.0,16856.0,0.79325904]
[1673029210207,0.00189009,16857.0,16856.0,0.94175904]
[1673029211150,0.00189009,16857.0,16856.0,0.94125904]
[1673029211790,0.00189009,16857.0,16856.0,0.94115904]
[1673029216420,0.00189009,16857.0,16856.0,1.53445904]
[1673029216729,0.2,16860.0,16856.0,1.68295904]
[1673029216937,0.2,16860.0,16859.0,0.91225904]
[1673029217145,0.1,16860.0,16859.0,0.91225904]
[1673029217354,0.6485,16861.0,16859.0,0.91225904]
[1673029217567,0.6485,16861.0,16860.0,0.2]
[1673029218824,0.5007,16861.0,16860.0,0.3475]
[1673029219459,0.2,16861.0,16860.0,0.3475]
[1673029219670,0.2,16861.0,16860.0,0.6482]
[1673029219982,0.082,16861.0,16860.0,0.6572]
[1673029221141,0.082,16861.0,16860.0,0.6576]
[1673029223147,0.082,16861.0,16860.0,1.22185904]
[1673029225138,0.082,16861.0,16860.0,1.22245904]
[1673029228601,0.082,16861.0,16860.0,0.92175904]
[1673029228816,0.082,16861.0,16860.0,1.22245904]
[1673029232082,0.082,16861.0,16860.0,0.92175904]
[1673029234496,0.082,16861.0,16860.0,0.77325904]
[1673029234714,0.2305,16861.0,16860.0,0.77325904]
[1673029236504,0.5312,16861.0,16860.0,0.77325904]
[1673029241658,0.2305,16861.0,16860.0,0.77325904]
[1673029241970,0.2297,16861.0,16860.0,0.77325904]
[1673029251217,0.2293,16861.0,16860.0,0.77325904]
[1673029261205,0.2295,16861.0,16860.0,0.77325904]
[1673029270034,0.2295,16861.0,16860.0,0.77316985]
[1673029271189,0.2299,16861.0,16860.0,0.77316985]
[1673029273291,0.5306,16861.0,16860.0,0.77316985]
[1673029277702,0.2299,16861.0,16860.0,0.77316985]
[1673029281174,0.2297,16861.0,16860.0,0.77316985]
[1673029297977,0.2297,16861.0,16860.0,1.07386985]
[1673029301138,0.082,16861.0,16860.0,1.07386985]
[1673029301986,0.082,16861.0,16860.0,1.22196985]
[1673029304494,0.075,16861.0,16860.0,1.22296985]
[1673029311112,0.075,16861.0,16860.0,1.22276985]
[1673029313130,0.075,16861.0,16860.0,0.92206985]
[1673029319435,0.075,16861.0,16860.0,0.9219342]
[1673029321219,0.075,16861.0,16860.0,0.9220342]
[1673029329111,0.075,16861.0,16860.0,1.2227342]
[1673029331216,0.075,16861.0,16860.0,1.2228342]
[1673029333105,0.075,16861.0,16860.0,0.65857516]
[1673029333314,0.075,16861.0,16860.0,1.2228342]
[1673029339523,0.075,16861.0,16860.0,0.9221342]
[1673029344148,0.075,16861.0,16860.0,1.3704342]
[1673029344362,1.2303,16865.0,16861.0,0.2]
[1673029344363,0.2,16864.0,16861.0,0.2]
[1673029344572,0.2,16864.0,16863.0,0.56425904]
[1673029345716,0.2,16865.0,16863.0,0.72165904]
[1673029346039,0.2,16865.0,16864.0,0.1481]
[1673029347086,0.2,16865.0,16864.0,0.1581]
[1673029348349,0.206,16865.0,16864.0,0.1591]
[1673029349822,0.206,16865.0,16864.0,0.72335904]
[1673029351201,0.3532,16865.0,16864.0,0.57525904]
[1673029355821,0.1532,16865.0,16864.0,0.57525904]
[1673029357496,0.154,16865.0,16864.0,0.57525904]
[1673029358548,0.154,16865.0,16864.0,0.4730471]
[1673029358757,0.154,16865.0,16864.0,0.011]
[1673029360136,0.3025,16865.0,16864.0,0.011]
[1673029360342,0.451,16865.0,16864.0,0.011]
[1673029361291,0.3025,16865.0,16864.0,0.011]
[1673029362337,0.451,16865.0,16864.0,0.011]
[1673029363701,0.451,16865.0,16859.0,0.56425904]
[1673029363702,2.233,16865.0,16859.0,0.56425904]
[1673029363919,0.2962,16860.0,16859.0,0.56425904]
[1673029364455,0.4962,16860.0,16859.0,0.56425904]
[1673029365178,0.4962,16860.0,16859.0,0.62225904]
[1673029366749,0.5122,16860.0,16859.0,0.57425904]
[1673029370859,0.8129,16860.0,16859.0,0.57425904]
[1673029371179,0.9602,16860.0,16859.0,0.57425904]
[1673029371919,0.6595,16860.0,16859.0,0.57425904]
[1673029372120,1.2609,16860.0,16859.0,0.57425904]
[1673029378948,0.9602,16860.0,16859.0,0.57425904]
[1673029387682,0.8125,16860.0,16859.0,0.57425904]
[1673029392326,0.6652,16860.0,16859.0,0.57425904]
[1673029398102,0.3645,16860.0,16859.0,0.57425904]
[1673029408710,0.3645,16860.0,16859.0,0.5740809]
[1673029411766,0.164,16860.0,16859.0,0.5740809]
[1673029412705,0.164,16860.0,16859.0,0.8747809]
[1673029415010,0.1645,16860.0,16859.0,0.8747809]
[1673029418502,0.3645,16860.0,16859.0,0.8747809]
[1673029419328,0.3645,16860.0,16859.0,0.5740809]
[1673029421220,0.3635,16860.0,16859.0,0.5740809]
[1673029422906,0.3645,16860.0,16859.0,0.5740809]
[1673029424374,0.3633,16860.0,16859.0,0.5740809]
[1673029431199,0.3645,16860.0,16859.0,0.5740809]
[1673029453167,0.1645,16860.0,16859.0,0.5740809]
[1673029453378,0.1645,16860.0,16859.0,0.8747809]
[1673029453692,0.016,16860.0,16859.0,1.1704809]
[1673029455060,0.016,16860.0,16859.0,1.3189809]
[1673029455374,0.2,16864.0,16860.0,0.2]
[1673029455573,0.2,16864.0,16863.0,0.7125809]
[1673029455785,0.2,16864.0,16863.0,0.9125809]
[1673029456318,0.3477,16865.0,16863.0,0.9125809]
[1673029456516,0.2,16865.0,16864.0,0.1471]
[1673029456729,0.2,16865.0,16864.0,0.7111809]
[1673029458093,0.3478,16866.0,16864.0,0.7111809]
[1673029458311,0.001,16865.0,16864.0,1.0228809]
[1673029459053,0.1478,16866.0,16864.0,1.0118809]
[1673029459364,0.1478,16866.0,16865.0,0.2]
[1673029459575,0.3478,16866.0,16865.0,0.2]
[1673029460725,0.3488,16866.0,16865.0,0.2]
[1673029461149,0.201,16866.0,16865.0,0.348]
[1673029461359,0.201,16866.0,16865.0,0.359]
[1673029461574,0.001,16866.0,16865.0,0.359]
[1673029462197,0.2,16866.0,16865.0,0.348]
[1673029462414,0.201,16866.0,16865.0,0.359]
[1673029463150,0.001,16866.0,16865.0,0.359]
[1673029463357,0.001,16866.0,16865.0,0.3585]
[1673029463988,0.001,16866.0,16865.0,0.3575]
[1673029472828,0.001,16866.0,16865.0,0.6582]
[1673029482378,0.001,16866.0,16865.0,0.6592]
[1673029491211,0.001,16866.0,16865.0,0.6581]
[1673029500889,0.001,16866.0,16865.0,1.2522]
[1673029501210,0.9296,16872.0,16866.0,0.4957]
[1673029501405,0.2,16871.0,16870.0,0.1476]
[1673029501830,0.2,16871.0,16869.0,0.2]
[1673029502151,0.2,16871.0,16869.0,0.3475]
[1673029502152,0.3485,16871.0,16869.0,0.3475]
[1673029502472,0.3485,16871.0,16870.0,0.012]
[1673029503095,0.6492,16871.0,16870.0,0.012]
[1673029503516,0.6492,16871.0,16869.0,0.3475]
[1673029503721,0.6492,16871.0,16869.0,0.3595]
[1673029503932,0.6492,16871.0,16869.0,0.3475]
[1673029504138,0.6492,16871.0,16870.0,0.012]
[1673029504665,0.6492,16871.0,16869.0,0.3595]
[1673029505082,0.6492,16871.0,16870.0,0.012]
[1673029505727,0.5007,16871.0,16870.0,0.5760809]
[1673029505939,0.2,16871.0,16870.0,0.5760809]
[1673029506154,0.2,16872.0,16870.0,0.7236809]
[1673029506465,0.3485,16872.0,16870.0,0.7116809]
[1673029506875,0.3007,16871.0,16870.0,0.7236809]
[1673029507403,0.3007,16871.0,16870.0,0.012]
[1673029507619,0.4492,16871.0,16870.0,0.012]
[1673029508141,0.4492,16871.0,16869.0,0.2]
[1673029508352,0.3007,16871.0,16870.0,0.011]
[1673029508672,0.4492,16871.0,16870.0,0.011]
[1673029509194,0.4492,16871.0,16870.0,0.5750809]
[1673029509609,0.4492,16871.0,16870.0,0.5640809]
[1673029510246,0.1485,16871.0,16870.0,0.5750809]
[1673029511195,0.1475,16871.0,16870.0,0.5750809]
[1673029512462,0.148,16871.0,16870.0,0.5750809]
[1673029513407,0.5977,16871.0,16870.0,0.011]
[1673029513620,0.7977,16871.0,16870.0,0.011]
[1673029515607,0.1485,16870.0,16866.0,0.7640809]